[Event "Polofinale MCR junioru 2023"]
[Site "Czech Republic"]
[Date "2023.11.12"]
[Round "2.16"]
[White "Svadlenka, Dominik"]
[Black "Jirasko, Miroslav"]
[Result "0-1"]
[TimeControl "90 min per 40 moves + 15 min + 30 sec / move from move 1"]
[WhiteFideId "23716258"]
[BlackFideId "23729414"]
[WhiteElo "1725"]
[BlackElo "2084"]

1. d4 {[%clk 01:30:58]} {[%emt 00:00:01]} d5 {[%clk 01:29:00]} {[%emt
00:01:52]} 2. c4 {[%clk 01:31:24]} {[%emt 00:00:12]} e6 {[%clk 01:29:09]}
{[%emt 00:00:21]} 3. Nc3 {[%clk 01:31:50]} {[%emt 00:00:04]} a6 {[%clk
01:29:35]} {[%emt 00:00:04]} 4. cxd5 {[%clk 01:32:11]} {[%emt 00:00:09]} exd5
{[%clk 01:30:00]} {[%emt 00:00:04]} 5. Nf3 {[%clk 01:32:29]} {[%emt 00:00:12]}
h6 {[%clk 01:29:45]} {[%emt 00:00:46]} 6. Bf4 {[%clk 01:32:22]} {[%emt
00:00:36]} Nf6 {[%clk 01:30:08]} {[%emt 00:00:07]} 7. h3 {[%clk 01:30:39]}
{[%emt 00:02:13]} Bd6 {[%clk 01:30:12]} {[%emt 00:00:26]} 8. Bxd6 {[%clk
01:30:38]} {[%emt 00:00:32]} Qxd6 {[%clk 01:30:38]} {[%emt 00:00:05]} 9. e3
{[%clk 01:30:59]} {[%emt 00:00:09]} Bf5 {[%clk 01:31:02]} {[%emt 00:00:06]} 10.
Bd3 {[%emt 00:03:33]} Bxd3 {[%clk 01:29:21]} {[%emt 00:00:01]} 11. Qxd3 {[%clk
01:30:31]} {[%emt 00:00:05]} Nbd7 {[%clk 01:29:24]} {[%emt 00:00:27]} 12. O-O
{[%clk 01:30:18]} {[%emt 00:00:42]} O-O {[%clk 01:29:49]} {[%emt 00:00:05]} 13.
Rac1 {[%clk 01:24:36]} {[%emt 00:06:12]} c6 {[%clk 01:27:42]} {[%emt 00:02:37]}
14. Rb1 {[%clk 01:16:41]} {[%emt 00:08:26]} Rfe8 {[%clk 01:18:54]} {[%emt
00:09:17]} 15. b4 {[%clk 01:10:47]} {[%emt 00:06:24]} b5 {[%clk 01:18:45]}
{[%emt 00:00:40]} 16. Qc2 {[%clk 01:05:14]} {[%emt 00:06:02]} Nb6 {[%clk
01:16:09]} {[%emt 00:03:06]} 17. Ne5 {[%clk 00:58:45]} {[%emt 00:06:59]} Nfd7
{[%clk 01:08:13]} {[%emt 00:08:25]} 18. Nd3 {[%clk 00:57:05]} {[%emt 00:02:10]}
Nc4 {[%clk 01:08:15]} {[%emt 00:00:28]} 19. Ra1 {[%clk 00:48:30]} {[%emt
00:09:06]} a5 {[%clk 01:03:12]} {[%emt 00:05:33]} 20. a3 {[%clk 00:46:37]}
{[%emt 00:02:23]} Ra7 {[%clk 01:00:47]} {[%emt 00:02:55]} 21. Ra2 {[%clk
00:37:17]} {[%emt 00:09:50]} axb4 {[%clk 00:49:35]} {[%emt 00:11:42]} 22. axb4
{[%clk 00:37:32]} {[%emt 00:00:15]} Rxa2 {[%clk 00:48:13]} {[%emt 00:01:52]} 23.
Qxa2 {[%clk 00:37:35]} {[%emt 00:00:27]} Ndb6 {[%clk 00:30:56]} {[%emt
00:17:47]} 24. Ra1 {[%clk 00:34:37]} {[%emt 00:03:28]} Qf6 {[%clk 00:24:52]}
{[%emt 00:06:33]} 25. Qe2 {[%clk 00:29:19]} {[%emt 00:05:48]} Qg5 {[%clk
00:20:55]} {[%emt 00:04:27]} 26. Qg4 {[%clk 00:24:42]} {[%emt 00:05:07]} Qe7
{[%clk 00:20:49]} {[%emt 00:00:35]} 27. Qg3 {[%clk 00:21:16]} {[%emt 00:03:56]}
Nd2 {[%clk 00:15:10]} {[%emt 00:06:09]} 28. Nc5 {[%clk 00:16:08]} {[%emt
00:05:38]} Nbc4 {[%clk 00:13:53]} {[%emt 00:01:48]} 29. Ra6 {[%clk 00:13:52]}
{[%emt 00:02:46]} Qf6 {[%clk 00:14:18]} {[%emt 00:00:05]} 30. Nxd5 {[%clk
00:06:41]} {[%emt 00:07:41]} Qf5 {[%clk 00:13:53]} {[%emt 00:00:55]} 31. e4
{[%clk 00:06:15]} {[%emt 00:00:56]} cxd5 {[%clk 00:14:07]} {[%emt 00:00:17]} 32.
exf5 {[%clk 00:06:24]} {[%emt 00:00:21]} Re1+ {[%clk 00:14:31]} {[%emt
00:00:05]} 33. Kh2 {[%clk 00:06:49]} {[%emt 00:00:05]} Nf1+ {[%clk 00:14:58]}
{[%emt 00:00:03]} 34. Kg1 {[%clk 00:07:13]} {[%emt 00:00:06]} Nxg3+ {[%clk
00:15:24]} {[%emt 00:00:05]} 35. Kh2 {[%clk 00:07:39]} {[%emt 00:00:04]} Nf1+
{[%clk 00:14:02]} {[%emt 00:01:51]} 36. Kg1 {[%clk 00:08:04]} {[%emt 00:00:05]}
Nfe3+ {[%clk 00:12:32]} {[%emt 00:02:00]} 37. Kh2 {[%clk 00:08:30]} {[%emt
00:00:04]} Nxf5 {[%clk 00:12:57]} {[%emt 00:00:05]} 38. Ra8+ {[%clk 00:08:28]}
{[%emt 00:00:32]} Kh7 {[%clk 00:13:22]} {[%emt 00:00:05]} 39. Rd8 {[%clk
00:08:31]} {[%emt 00:00:27]} Nd2 {[%clk 00:12:26]} {[%emt 00:01:26]} 40. h4
{[%clk 00:06:21]} {[%emt 00:02:39]} h5 {[%clk 00:12:49]} {[%emt 00:00:07]} 41.
Rxd5 {[%clk 00:06:18]} {[%emt 00:00:34]} Nf1+ {[%clk 00:13:09]} {[%emt
00:00:10]} 42. Kh3 {[%clk 00:06:43]} {[%emt 00:00:05]} N1e3 {[%clk 00:13:26]}
{[%emt 00:00:12]} 0-1

[Event "Polofinale MCR junioru 2023"]
[Site "Czech Republic"]
[Date "2023.11.12"]
[Round "2.17"]
[White "Vlcek, Vojtech"]
[Black "Kubiczek, Michal"]
[Result "1/2-1/2"]
[TimeControl "90 min per 40 moves + 15 min + 30 sec / move from move 1"]
[WhiteFideId "23728647"]
[BlackFideId "23706996"]
[WhiteElo "1703"]
[BlackElo "2068"]

1. d4 {[%clk 01:30:39]} {[%emt 00:00:19]} Nf6 {[%clk 01:30:38]} {[%emt
00:00:23]} 2. c4 {[%clk 01:30:54]} {[%emt 00:00:14]} c5 {[%clk 01:30:53]}
{[%emt 00:00:15]} 3. d5 {[%clk 01:30:54]} {[%emt 00:00:30]} b5 {[%clk
01:31:17]} {[%emt 00:00:06]} 4. cxb5 {[%clk 01:30:34]} {[%emt 00:00:49]} a6
{[%clk 01:31:42]} {[%emt 00:00:06]} 5. bxa6 {[%clk 01:29:35]} {[%emt 00:01:28]}
g6 {[%clk 01:32:03]} {[%emt 00:00:09]} 6. Nc3 {[%clk 01:29:49]} {[%emt
00:00:16]} Bg7 {[%clk 01:32:14]} {[%emt 00:00:19]} 7. g3 {[%clk 01:27:28]}
{[%emt 00:02:51]} O-O {[%clk 01:32:21]} {[%emt 00:00:23]} 8. Bg2 {[%clk
01:22:20]} {[%emt 00:05:37]} d6 {[%clk 01:32:40]} {[%emt 00:00:11]} 9. Nf3
{[%clk 01:21:15]} {[%emt 00:01:34]} Nxa6 {[%clk 01:32:56]} {[%emt 00:00:14]} 10.
h3 {[%clk 01:17:26]} {[%emt 00:04:20]} Bf5 {[%clk 01:28:17]} {[%emt 00:05:08]}
11. O-O {[%clk 01:05:30]} {[%emt 00:12:26]} Ne4 {[%clk 00:56:45]} {[%emt
00:32:03]} 12. Nxe4 {[%clk 00:59:54]} {[%emt 00:06:06]} Bxe4 {[%clk 00:57:12]}
{[%emt 00:00:02]} 13. Nd2 {[%clk 01:00:14]} {[%emt 00:00:11]} Bxg2 {[%clk
00:56:52]} {[%emt 00:00:49]} 14. Kxg2 {[%clk 01:00:40]} {[%emt 00:00:04]} Nb4
{[%clk 00:54:30]} {[%emt 00:02:53]} 15. Qb3 {[%clk 01:00:48]} {[%emt 00:00:22]}
Qd7 {[%clk 00:53:24]} {[%emt 00:01:36]} 16. a3 {[%clk 00:58:21]} {[%emt
00:02:57]} Rfb8 {[%clk 00:52:38]} {[%emt 00:01:16]} 17. Rb1 {[%clk 00:57:28]}
{[%emt 00:01:23]} Na6 {[%clk 00:51:27]} {[%emt 00:01:40]} 18. Qc2 {[%clk
00:54:42]} {[%emt 00:03:16]} Nc7 {[%clk 00:48:46]} {[%emt 00:03:11]} 19. e4
{[%clk 00:53:56]} {[%emt 00:01:17]} Nb5 {[%clk 00:45:19]} {[%emt 00:03:58]} 20.
Nf3 {[%clk 00:53:24]} {[%emt 00:01:01]} Qa7 {[%clk 00:36:47]} {[%emt 00:09:01]}
21. Bf4 {[%clk 00:50:42]} {[%emt 00:03:11]} Nd4 {[%clk 00:35:07]} {[%emt
00:02:13]} 22. Nxd4 {[%clk 00:49:24]} {[%emt 00:01:48]} Bxd4 {[%clk 00:35:34]}
{[%emt 00:00:03]} 23. Bc1 {[%clk 00:46:17]} {[%emt 00:03:36]} Rb6 {[%clk
00:34:19]} {[%emt 00:01:45]} 24. Rd1 {[%clk 00:44:13]} {[%emt 00:02:33]} Rab8
{[%clk 00:33:32]} {[%emt 00:01:18]} 25. b3 {[%clk 00:44:27]} {[%emt 00:00:15]}
Qa6 {[%clk 00:30:44]} {[%emt 00:03:19]} 26. Rd3 {[%clk 00:38:41]} {[%emt
00:06:16]} Bg7 {[%clk 00:31:12]} {[%emt 00:00:02]} 27. Rd1 {[%clk 00:36:48]}
{[%emt 00:02:23]} Qb7 {[%clk 00:29:42]} {[%emt 00:02:00]} 28. b4 {[%clk
00:34:47]} {[%emt 00:02:32]} cxb4 {[%clk 00:28:06]} {[%emt 00:02:07]} 29. axb4
{[%clk 00:34:39]} {[%emt 00:00:37]} Rxb4 {[%clk 00:27:37]} {[%emt 00:00:59]} 30.
Rxb4 {[%clk 00:34:54]} {[%emt 00:00:16]} Qxb4 {[%clk 00:28:04]} {[%emt
00:00:02]} 31. Be3 {[%clk 00:35:12]} {[%emt 00:00:12]} 1/2-1/2

[Event "Polofinale MCR junioru 2023"]
[Site "Czech Republic"]
[Date "2023.11.12"]
[Round "2.18"]
[White "Vasinek, Martin"]
[Black "Vojta, Jakub"]
[Result "0-1"]
[TimeControl "90 min per 40 moves + 15 min + 30 sec / move from move 1"]
[WhiteFideId "392200"]
[BlackFideId "382515"]
[WhiteElo "1987"]
[BlackElo "2267"]

1. d4 {[%clk 01:30:57]} {[%emt 00:00:02]} Nf6 {[%clk 01:30:56]} {[%emt
00:00:05]} 2. Nf3 {[%clk 01:31:16]} {[%emt 00:00:11]} b6 {[%clk 01:30:53]}
{[%emt 00:00:34]} 3. c4 {[%clk 01:26:10]} {[%emt 00:05:35]} Bb7 {[%clk
01:29:45]} {[%emt 00:01:38]} 4. e3 {[%clk 01:25:56]} {[%emt 00:00:44]} e6
{[%clk 01:30:11]} {[%emt 00:00:04]} 5. a3 {[%clk 01:25:18]} {[%emt 00:01:08]}
d5 {[%clk 01:30:35]} {[%emt 00:00:05]} 6. Nc3 {[%clk 01:24:20]} {[%emt
00:01:28]} Be7 {[%clk 01:29:46]} {[%emt 00:01:19]} 7. Be2 {[%clk 01:22:26]}
{[%emt 00:02:24]} O-O {[%clk 01:30:11]} {[%emt 00:00:05]} 8. O-O {[%clk
01:22:52]} {[%emt 00:00:04]} Nbd7 {[%clk 01:30:39]} {[%emt 00:00:02]} 9. b3
{[%clk 01:14:57]} {[%emt 00:08:25]} c5 {[%clk 01:26:04]} {[%emt 00:05:05]} 10.
Bb2 {[%clk 01:14:11]} {[%emt 00:01:16]} Rc8 {[%clk 01:25:42]} {[%emt 00:00:52]}
11. Rc1 {[%clk 01:13:48]} {[%emt 00:00:52]} cxd4 {[%clk 01:23:21]} {[%emt
00:02:51]} 12. exd4 {[%clk 01:12:40]} {[%emt 00:01:37]} dxc4 {[%clk 01:23:00]}
{[%emt 00:00:52]} 13. Bxc4 {[%clk 01:12:29]} {[%emt 00:00:41]} Nb8 {[%clk
01:19:44]} {[%emt 00:03:46]} 14. Ne5 {[%clk 01:06:35]} {[%emt 00:06:23]} Nc6
{[%clk 01:16:42]} {[%emt 00:03:33]} 15. Nxc6 {[%clk 01:01:36]} {[%emt
00:05:29]} Bxc6 {[%clk 01:16:19]} {[%emt 00:00:53]} 16. Qd3 {[%clk 01:00:38]}
{[%emt 00:01:28]} Nd5 {[%clk 01:15:58]} {[%emt 00:00:51]} 17. Ne2 {[%clk
00:50:28]} {[%emt 00:10:39]} Bd6 {[%clk 01:15:03]} {[%emt 00:01:25]} 18. Bxd5
{[%clk 00:49:14]} {[%emt 00:01:44]} Bxd5 {[%clk 01:13:13]} {[%emt 00:02:19]} 19.
Rxc8 {[%clk 00:49:23]} {[%emt 00:00:22]} Qxc8 {[%clk 01:13:42]} {[%emt
00:00:01]} 20. Rc1 {[%clk 00:49:49]} {[%emt 00:00:03]} Qb7 {[%clk 01:14:11]}
{[%emt 00:00:01]} 21. f3 {[%clk 00:49:07]} {[%emt 00:01:12]} Rc8 {[%clk
01:11:28]} {[%emt 00:03:13]} 22. Rxc8+ {[%clk 00:45:07]} {[%emt 00:04:29]} Qxc8
{[%clk 01:11:57]} {[%emt 00:00:02]} 23. Nc3 {[%clk 00:45:02]} {[%emt 00:00:35]}
Bc6 {[%clk 01:09:21]} {[%emt 00:03:07]} 24. Ne4 {[%clk 00:43:37]} {[%emt
00:01:54]} Be7 {[%clk 01:08:04]} {[%emt 00:01:48]} 25. Qc3 {[%clk 00:42:25]}
{[%emt 00:01:41]} Bb7 {[%clk 01:07:48]} {[%emt 00:00:45]} 26. Kf2 {[%clk
00:39:00]} {[%emt 00:03:57]} Qxc3 {[%clk 01:07:54]} {[%emt 00:00:25]} 27. Nxc3
{[%clk 00:39:27]} {[%emt 00:00:02]} Kf8 {[%clk 01:07:43]} {[%emt 00:00:41]} 28.
Ke3 {[%clk 00:39:22]} {[%emt 00:00:35]} Ke8 {[%clk 01:08:02]} {[%emt 00:00:12]}
29. g3 {[%clk 00:38:56]} {[%emt 00:00:55]} Kd7 {[%clk 01:08:29]} {[%emt
00:00:03]} 30. Ne2 {[%emt 00:01:23]} Bd5 {[%clk 01:08:45]} 31. b4 {[%clk
00:35:21]} {[%emt 00:03:25]} Bc4 {[%clk 01:09:11]} {[%emt 00:00:05]} 32. Nc1
{[%clk 00:32:51]} {[%emt 00:02:59]} Kd6 {[%clk 01:07:53]} {[%emt 00:01:49]} 33.
Nd3 {[%clk 00:32:32]} {[%emt 00:00:48]} f6 {[%clk 01:06:50]} {[%emt 00:01:33]}
34. Bc3 {[%clk 00:31:52]} {[%emt 00:01:10]} Bb5 {[%clk 01:06:40]} {[%emt
00:00:39]} 35. Nb2 {[%clk 00:31:25]} {[%emt 00:00:57]} Kd5 {[%clk 01:06:32]}
{[%emt 00:00:38]} 36. f4 {[%clk 00:29:55]} {[%emt 00:02:00]} f5 {[%clk
01:03:41]} {[%emt 00:03:21]} 37. Be1 {[%clk 00:27:37]} {[%emt 00:02:46]} Bf6
{[%clk 01:02:55]} {[%emt 00:01:17]} 38. Bc3 {[%clk 00:28:06]} {[%emt 00:00:02]}
h6 {[%clk 01:02:36]} {[%emt 00:00:48]} 39. h4 {[%clk 00:27:45]} {[%emt
00:00:51]} Be8 {[%clk 01:02:41]} {[%emt 00:00:26]} 40. a4 {[%clk 00:15:18]}
{[%emt 00:12:57]} a6 {[%clk 01:00:07]} {[%emt 00:03:03]} 41. a5 {[%clk
00:14:20]} {[%emt 00:01:28]} bxa5 {[%clk 01:00:17]} {[%emt 00:00:21]} 42. bxa5
{[%clk 00:14:46]} {[%emt 00:00:04]} Bb5 {[%clk 01:00:39]} {[%emt 00:00:08]} 43.
Nd3 {[%clk 00:13:39]} {[%emt 00:01:37]} Kc4 {[%clk 00:51:01]} {[%emt 00:10:07]}
44. Ba1 {[%clk 00:14:00]} {[%emt 00:00:10]} Bd8 {[%clk 00:43:24]} {[%emt
00:08:06]} 45. Nc5 {[%clk 00:13:43]} {[%emt 00:00:46]} Bxa5 {[%clk 00:43:41]}
{[%emt 00:00:14]} 46. Nxe6 {[%clk 00:14:09]} {[%emt 00:00:05]} g6 {[%clk
00:43:58]} {[%emt 00:00:12]} 47. h5 {[%clk 00:08:10]} {[%emt 00:06:29]} gxh5
{[%clk 00:43:48]} {[%emt 00:00:40]} 48. Ng7 {[%clk 00:08:09]} {[%emt 00:00:31]}
Bd7 {[%clk 00:44:04]} {[%emt 00:00:15]} 49. Nxh5 {[%clk 00:08:28]} {[%emt
00:00:11]} Bd8 {[%clk 00:39:28]} {[%emt 00:05:05]} 50. d5 {[%clk 00:04:50]}
{[%emt 00:04:09]} Kxd5 {[%clk 00:39:30]} {[%emt 00:00:28]} 51. Nf6+ {[%clk
00:04:19]} {[%emt 00:01:00]} Ke6 {[%clk 00:39:47]} {[%emt 00:00:13]} 52. Nxd7
{[%clk 00:03:57]} {[%emt 00:00:52]} Kxd7 {[%clk 00:40:16]} {[%emt 00:00:01]} 53.
Kf3 {[%clk 00:03:57]} {[%emt 00:00:28]} h5 {[%clk 00:40:39]} {[%emt 00:00:10]}
54. Ke3 {[%clk 00:03:52]} {[%emt 00:00:34]} Ke6 {[%clk 00:40:59]} {[%emt
00:00:11]} 55. Bc3 {[%clk 00:04:00]} {[%emt 00:00:21]} Bb6+ {[%clk 00:41:25]}
{[%emt 00:00:05]} 56. Ke2 {[%clk 00:04:05]} {[%emt 00:00:25]} Kd5 {[%clk
00:41:51]} {[%emt 00:00:04]} 57. Be1 {[%clk 00:01:51]} {[%emt 00:02:44]} Ke4
{[%clk 00:42:16]} {[%emt 00:00:05]} 0-1

[Event "Polofinale MCR junioru 2023"]
[Site "Czech Republic"]
[Date "2023.11.12"]
[Round "2.19"]
[White "Ocelak, Jakub"]
[Black "Vylicil, Adam"]
[Result "1/2-1/2"]
[TimeControl "90 min per 40 moves + 15 min + 30 sec / move from move 1"]
[WhiteFideId "23707933"]
[BlackFideId "23717556"]
[WhiteElo "2238"]
[BlackElo "1896"]

1. Nf3 {[%clk 01:30:35]} {[%emt 00:00:23]} d5 {[%clk 01:30:40]} {[%emt
00:00:16]} 2. e3 {[%clk 01:30:48]} {[%emt 00:00:22]} Nf6 {[%clk 01:28:23]}
{[%emt 00:02:47]} 3. c4 {[%clk 01:31:02]} {[%emt 00:00:15]} e6 {[%clk
01:28:14]} {[%emt 00:00:40]} 4. Nc3 {[%clk 01:31:15]} {[%emt 00:00:18]} a6
{[%clk 01:26:32]} {[%emt 00:02:12]} 5. b3 {[%clk 01:29:37]} {[%emt 00:02:07]}
Bd6 {[%clk 01:22:00]} {[%emt 00:05:03]} 6. Bb2 {[%clk 01:29:59]} {[%emt
00:00:09]} O-O {[%clk 01:21:53]} {[%emt 00:00:37]} 7. Qc2 {[%clk 01:24:18]}
{[%emt 00:06:10]} Qe7 {[%clk 01:18:52]} {[%emt 00:03:32]} 8. g4 {[%clk
01:17:42]} {[%emt 00:07:05]} dxc4 {[%clk 01:14:20]} {[%emt 00:05:03]} 9. g5
{[%clk 01:13:54]} {[%emt 00:04:18]} Nfd7 {[%clk 01:10:20]} {[%emt 00:04:30]} 10.
bxc4 {[%clk 01:12:52]} {[%emt 00:01:32]} f5 {[%clk 01:02:17]} {[%emt 00:08:32]}
11. Be2 {[%clk 01:03:06]} {[%emt 00:10:15]} c6 {[%clk 00:50:57]} {[%emt
00:11:51]} 12. e4 {[%clk 00:50:34]} {[%emt 00:13:02]} Ne5 {[%clk 00:41:07]}
{[%emt 00:10:20]} 13. O-O-O {[%clk 00:50:21]} {[%emt 00:00:43]} Nxf3 {[%clk
00:38:57]} {[%emt 00:02:40]} 14. Bxf3 {[%clk 00:50:41]} {[%emt 00:00:09]} Ba3
{[%clk 00:37:28]} {[%emt 00:01:59]} 15. exf5 {[%clk 00:44:06]} {[%emt
00:07:06]} exf5 {[%clk 00:34:15]} {[%emt 00:03:43]} 16. Rde1 {[%clk 00:29:40]}
{[%emt 00:14:55]} Bxb2+ {[%clk 00:30:28]} {[%emt 00:04:17]} 17. Qxb2 {[%clk
00:30:08]} {[%emt 00:00:02]} Qxg5 {[%clk 00:29:17]} {[%emt 00:01:41]} 18. Rhg1
{[%clk 00:30:27]} {[%emt 00:00:10]} Qf6 {[%clk 00:29:21]} {[%emt 00:00:27]} 19.
Qb4 {[%clk 00:29:34]} {[%emt 00:01:22]} a5 {[%clk 00:18:19]} {[%emt 00:11:33]}
20. Qe7 {[%clk 00:22:36]} {[%emt 00:07:27]} Qxe7 {[%clk 00:12:28]} {[%emt
00:06:21]} 21. Rxe7 {[%clk 00:23:04]} {[%emt 00:00:02]} Rf7 {[%clk 00:11:59]}
{[%emt 00:00:59]} 22. Nd5 {[%clk 00:06:34]} {[%emt 00:17:01]} Nd7 {[%clk
00:06:16]} {[%emt 00:06:13]} 23. Re8+ {[%clk 00:04:39]} {[%emt 00:02:25]} Rf8
{[%clk 00:05:39]} {[%emt 00:01:07]} 24. Re7 {[%clk 00:03:21]} {[%emt 00:01:48]}
Rf7 {[%clk 00:05:57]} {[%emt 00:00:11]} 25. Re8+ {[%clk 00:02:01]} {[%emt
00:01:49]} Rf8 {[%clk 00:06:20]} {[%emt 00:00:08]} 26. Re7 {[%clk 00:01:09]}
{[%emt 00:01:22]} Rf7 {[%clk 00:05:25]} {[%emt 00:01:25]} 1/2-1/2

[Event "Polofinale MCR junioru 2023"]
[Site "Czech Republic"]
[Date "2023.11.12"]
[Round "2.20"]
[White "Winter, Ondrej"]
[Black "Pressler, Tobias"]
[Result "1/2-1/2"]
[TimeControl "90 min per 40 moves + 15 min + 30 sec / move from move 1"]
[WhiteFideId "23702192"]
[BlackFideId "23715359"]
[WhiteElo "2163"]
[BlackElo "1937"]

1. e4 {[%clk 01:30:57]} {[%emt 00:00:02]} e6 {[%clk 01:30:44]} {[%emt
00:00:17]} 2. d4 {[%clk 01:31:17]} {[%emt 00:00:10]} d5 {[%clk 01:31:10]}
{[%emt 00:00:05]} 3. Nd2 {[%clk 01:31:43]} {[%emt 00:00:03]} a6 {[%clk
01:31:36]} {[%emt 00:00:04]} 4. Bd3 {[%clk 01:30:48]} {[%emt 00:01:25]} c5
{[%clk 01:31:52]} {[%emt 00:00:14]} 5. dxc5 {[%clk 01:31:06]} {[%emt 00:00:13]}
Bxc5 {[%clk 01:32:07]} {[%emt 00:00:16]} 6. Ngf3 {[%clk 01:31:20]} {[%emt
00:00:15]} Nc6 {[%clk 01:30:44]} {[%emt 00:01:52]} 7. O-O {[%clk 01:31:19]}
{[%emt 00:00:31]} Nf6 {[%clk 01:31:04]} {[%emt 00:00:11]} 8. Qe2 {[%clk
01:29:55]} {[%emt 00:01:54]} Nb4 {[%clk 01:31:11]} {[%emt 00:00:23]} 9. e5
{[%clk 01:27:13]} {[%emt 00:03:12]} Nd7 {[%clk 01:28:19]} {[%emt 00:03:22]} 10.
a3 {[%clk 01:26:08]} {[%emt 00:01:35]} Nxd3 {[%clk 01:28:43]} {[%emt 00:00:06]}
11. cxd3 {[%clk 01:26:15]} {[%emt 00:00:23]} O-O {[%clk 01:27:30]} {[%emt
00:01:43]} 12. b4 {[%clk 01:24:12]} {[%emt 00:02:33]} Be7 {[%clk 01:27:40]}
{[%emt 00:00:20]} 13. Nb3 {[%clk 01:22:56]} {[%emt 00:01:45]} b6 {[%clk
01:16:21]} {[%emt 00:11:50]} 14. Bb2 {[%clk 01:11:49]} {[%emt 00:11:37]} Bb7
{[%clk 01:16:11]} {[%emt 00:00:39]} 15. Rfc1 {[%clk 01:09:54]} {[%emt
00:02:25]} Rc8 {[%clk 01:13:08]} {[%emt 00:03:34]} 16. Qe1 {[%clk 00:58:13]}
{[%emt 00:12:10]} Re8 {[%clk 00:58:08]} {[%emt 00:15:31]} 17. Nbd4 {[%clk
00:48:20]} {[%emt 00:10:24]} Rxc1 {[%clk 00:56:11]} {[%emt 00:02:27]} 18. Rxc1
{[%clk 00:48:38]} {[%emt 00:00:11]} Qb8 {[%clk 00:56:37]} {[%emt 00:00:04]} 19.
h4 {[%clk 00:25:17]} {[%emt 00:23:51]} Rc8 {[%clk 00:53:02]} {[%emt 00:04:04]}
20. Rxc8+ {[%clk 00:22:03]} {[%emt 00:03:44]} Qxc8 {[%clk 00:53:21]} {[%emt
00:00:11]} 21. h5 {[%clk 00:22:22]} {[%emt 00:00:11]} h6 {[%clk 00:53:17]}
{[%emt 00:00:35]} 22. g3 {[%clk 00:15:40]} {[%emt 00:07:12]} Qc7 {[%clk
00:53:20]} {[%emt 00:00:26]} 23. Qc3 {[%clk 00:14:54]} {[%emt 00:01:16]} Bd8
{[%clk 00:51:12]} {[%emt 00:02:38]} 24. Qe1 {[%clk 00:10:06]} {[%emt 00:05:18]}
Bc6 {[%emt 00:04:26]} 1/2-1/2